{"text_format":"1","workbook":"xlsx","n_sheets":1,"sheets":[" ТО"],"not_rendered":{"charts":0,"images":0,"macros":1,"external_links":0,"defined_names":1,"comments":0,"pivot_tables":0},"unopened":[],"bounds":{"document_bytes":16777216,"sheet_cells":100000,"rows_first":2000,"rows_last":500,"rows_between":2000,"halvings":0,"cell_chars":16384,"cell_head_chars":4096},"cells_cut":0,"cells_raw":0,"read":"whole","date_system":"1900"}

{"sheet":" ТО","index":0,"n_rows":103,"n_cols":19,"rows_kept":103,"cut":false,"hidden":false,"merged":[[103,0,103,18],[0,11,0,15],[1,0,1,18],[2,0,2,18],[3,0,3,18],[4,0,4,18],[7,0,7,18],[36,0,36,18]]}
[]
["ПРЕДВАРИТЕЛЬНЫЕ  РЕЗУЛЬТАТЫ"]
["Спартакиады МВД России по служебно-прикладным видам спорта 2017 года"]
["(среди территориальных органов МВД России) "]
[]
["Общекомандное место ","Наименование подразделения","Самозащита без оружия","Зимнее служебное двоеборье","Лыжные гонки","Бокс","Дзюдо","Стрельба из боевого ручного стрелкового оружия ","Хоккей с шайбой","Рукопашный бой","Летний служебный биатлон","Соревнования специалистов-кинологов со служебными собаками ","Легкоатлетический кросс","Автомобильное многоборье","Преодоление полосы препятствий со стрельбой ","Мини-футбол","Плавание","Боевое самбо","Общая сумма очков                          "]
[1,2,3,4,5,6,7,8,9,10,11,12,13,14,15,16,17,18,19]
["Первая группа"]
[1,"ГУ МВД России по г. Санкт-Петербургу и Ленинградской области",1,null,5,1,1,2,null,2,null,null,null,null,null,null,null,null,{"$f":"SUM(C9:R9)","v":12}]
[2,"ГУ МВД России по г. Москве",5,4,1,3,2,4,null,5,null,null,null,null,null,null,null,null,24]
[3,"МВД по Республике Татарстан",6,7,2,4,3,9,null,3,null,null,null,null,null,null,null,null,34]
[4,"МВД по Республике Башкортостан",7,1,4,2,8,6,null,9,null,null,null,null,null,null,null,null,37]
[5,"ГУ МВД России по Московской области ",2,5,7,6,7,12,null,4,null,null,null,null,null,null,null,null,43]
[6,"ГУ МВД России по Алтайскому краю",9,3,8,9,9,14,null,11,null,null,null,null,null,null,null,null,63]
[7,"ГУ МВД России по Свердловской области ",4,6,6,null,6,15,null,7,null,null,null,null,null,null,null,null,44]
[8,"ГУ МВД России по Красноярскому краю",null,2,3,5,5,1,null,null,null,null,null,null,null,null,null,null,16]
[9,"ГУ МВД России по Краснодарскому краю",3,null,null,null,3,3,null,1,null,null,null,null,null,null,null,null,10]
[10,"ГУ МВД России по Ростовской области",10,null,null,7,10,5,null,10,null,null,null,null,null,null,null,null,42]
[11,"ГУ МВД России по Пермскому краю",8,8,9,null,19,16,null,13,null,null,null,null,null,null,null,null,73]
[12,"ГУ МВД России по Нижегородской области",13,13,12,11,18,21,null,19,null,null,null,null,null,null,null,null,107]
[13,"УМВД России по Хабаровскому краю ",12,12,15,8,null,17,null,16,null,null,null,null,null,null,null,null,80]
[14,"ГУ МВД России по Саратовской области",15,null,null,13,14,8,null,8,null,null,null,null,null,null,null,null,58]
[15,"УМВД России по Ханты-Мансийскому автономному округу – Югре ",11,14,16,14,null,22,null,15,null,null,null,null,null,null,null,null,92]
[16,"ГУ МВД России по Ставропольскому краю",18,null,null,10,11,13,null,12,null,null,null,null,null,null,null,null,64]
[17,"ГУ МВД России по Челябинской области ",14,11,11,null,16,20,null,null,null,null,null,null,null,null,null,null,72]
[18,"ГУ МВД России по Иркутской области",16,15,13,null,15,23,null,null,null,null,null,null,null,null,null,null,82]
[19,"ГУ МВД России по Волгоградской области",null,null,null,12,12,24,null,14,null,null,null,null,null,null,null,null,62]
[20,"УМВД России по Оренбургской области",20,null,null,null,13,18,null,null,null,null,null,null,null,null,null,null,51]
[21,"ГУ МВД России по Новосибирской области",21,null,null,null,17,null,null,20,null,null,null,null,null,null,null,null,58]
[22,"МВД по Чеченской Республике",19,null,null,null,null,null,null,17,null,null,null,null,null,null,null,null,36]
[23,"УМВД России по Омской области",null,9,10,null,null,11,null,null,null,null,null,null,null,null,null,null,{"$f":"SUM(C31:R31)","v":30}]
[24,"ГУ МВД России по Кемеровской области ",null,10,14,null,null,25,null,null,null,null,null,null,null,null,null,null,49]
[25,"ГУ МВД России по Самарской области",null,null,17,null,null,19,null,null,null,null,null,null,null,null,null,null,{"$f":"SUM(C33:R33)","v":36}]
[26,"ГУ МВД России по Воронежской области",null,null,null,null,null,7,null,null,null,null,null,null,null,null,null,null,7]
[27,"МВД по Республике Дагестан",null,null,null,null,null,null,null,6,null,null,null,null,null,null,null,null,6]
[28,"УМВД России по Приморскому краю ",null,null,null,null,null,10,null,18,null,null,null,null,null,null,null,null,28]
["Вторая группа"]
[1,"УМВД России по Владимирской области",2,6,null,1,2,1,null,3,null,null,null,null,null,null,null,null,{"$f":"SUM(C38:R38)","v":15}]
[2,"МВД по Удмуртской Республике",13,3,1,2,12,7,null,null,null,null,null,null,null,null,null,null,38]
[3,"УМВД России по Вологодской области",9,2,4,3,3,21,null,null,null,null,null,null,null,null,null,null,42]
[4,"УМВД России по Рязанской области",1,15,7,null,1,32,null,1,null,null,null,null,null,null,null,null,57]
[5,"УМВД России по Липецкой области",5,18,11,12,6,20,null,2,null,null,null,null,null,null,null,null,74]
[6,"УМВД России по Тульской области",32,14,9,4,11,2,null,19,null,null,null,null,null,null,null,null,91]
[7,"УМВД России по Брянской области",7,28,24,null,7,6,null,17,null,null,null,null,null,null,null,null,89]
[8,"МВД по Республике Северная Осетия – Алания",4,null,null,15.5,4,26,null,4,null,null,null,null,null,null,null,null,53.5]
[9,"МВД по Чувашской Республике",12,null,null,6,18,13,null,14,null,null,null,null,null,null,null,null,63]
[10,"УМВД России по Ярославской области",3,7,5,null,13,42,null,null,null,null,null,null,null,null,null,null,70]
[11,"УМВД России по Курской области",27,null,null,17,15,22,null,13,null,null,null,null,null,null,null,null,94]
[12,"УМВД России по Белгородской области ",8,null,null,5,14,null,null,7.5,null,null,null,null,null,null,null,null,34.5]
[13,"УМВД России по Архангельской области",null,10,3,9.5,null,9,null,null,null,null,null,null,null,null,null,null,31.5]
[14,"УМВД России по Смоленской области",19,8,6,null,null,null,null,9.5,null,null,null,null,null,null,null,null,42.5]
[15,"УМВД России по Орловской области",22.5,null,null,null,21,5,null,9.5,null,null,null,null,null,null,null,null,58]
[16,"УМВД России по Костромской области",null,1,12,null,null,3,null,null,null,null,null,null,null,null,null,null,16]
[17,"МВД по Республике Коми",null,9,2,null,null,11,null,null,null,null,null,null,null,null,null,null,22]
[18,"УМВД России по Томской области",null,4,10,null,null,10,null,null,null,null,null,null,null,null,null,null,24]
[19,"МВД по Республике Саха (Якутия)",14,null,null,7,null,15,null,null,null,null,null,null,null,null,null,null,36]
[20,"УМВД России по Калужской области",null,21,27,9.5,null,null,null,null,null,null,null,null,null,null,null,null,57.5]
[21,"УМВД России по Тамбовской области",21,16,17,12,33,24,null,21.5,null,null,null,null,null,null,null,null,144.5]
[22,"УМВД России по Кировской области",25.5,5,8,18,null,25,null,23,null,null,null,null,null,null,null,null,104.5]
[23,"УТ МВД России по ЦФО",11,30,26,21.5,34,46,null,16,null,null,null,null,null,null,null,null,184.5]
[24,"МВД по Республике Ингушетия",29,null,null,25,5,48,null,11,null,null,null,null,null,null,null,null,118]
[25,"УМВД России по Астраханской области",31,null,null,15.5,17,43,null,15,null,null,null,null,null,null,null,null,121.5]
[26,"УМВД России по Ивановской области",15,23,19,21.5,32,34,null,null,null,null,null,null,null,null,null,null,144.5]
[27,"МВД по Республике Адыгея",10,null,null,null,8,31,null,18,null,null,null,null,null,null,null,null,67]
[28,"МВД по Карачаево-Черкесской Республике",28,null,null,24,10,null,null,6,null,null,null,null,null,null,null,null,68]
[29,"УМВД России по Мурманской области",25.5,20,18,23,25,null,null,null,null,null,null,null,null,null,null,null,111.5]
[7,"УМВД России по Тверской области",22.5,null,null,19.5,27,30,null,null,null,null,null,null,null,null,null,null,99]
[31,"МВД по Республике Крым",null,null,null,8,26,45,null,21.5,null,null,null,null,null,null,null,null,100.5]
[32,"УТ МВД России по ПФО",17,31,28,null,22,33,null,null,null,null,null,null,null,null,null,null,131]
[33,"УТ МВД России по УрФО",24,null,null,19.5,29,37,null,null,null,null,null,null,null,null,null,null,109.5]
[34,"УМВД России по Ульяновской области",null,null,null,null,null,17,null,12,null,null,null,null,null,null,null,null,29]
[35,"УМВД по г. Севастополю",null,null,null,14,30,39,null,20,null,null,null,null,null,null,null,null,103]
[36,"УМВД России по Тюменской области",null,13,13,null,23,8,null,null,null,null,null,null,null,null,null,null,57]
[37,"УМВД России по Новгородской области",33,17,23,null,37,18,null,null,null,null,null,null,null,null,null,null,128]
[38,"МВД по Кабардино-Балкарской Республике",null,null,null,null,16,28,null,5,null,null,null,null,null,null,null,null,49]
[39,"УМВД России по Калининградской области",6,null,null,null,9,38,null,null,null,null,null,null,null,null,null,null,53]
[40,"УМВД России по Сахалинской области",34,25,22,null,36,19,null,null,null,null,null,null,null,null,null,null,136]
[41,"УМВД России по Псковской области",20,27,29,null,30,40,null,null,null,null,null,null,null,null,null,null,146]
[42,"УМВД России по Пензенской области",30,29,25,null,20,41,null,null,null,null,null,null,null,null,null,null,145]
[43,"МВД по Республике Калмыкия",null,null,null,26,null,14,null,24,null,null,null,null,null,null,null,null,64]
[44,"МВД по Республике Карелия",null,26,21,12,null,29,null,null,null,null,null,null,null,null,null,null,88]
[45,"УТ МВД России по СЗФО",null,null,null,null,28,35,null,7.5,null,null,null,null,null,null,null,null,70.5]
[46,"МВД по Республике Мордовия",null,11,14,null,null,null,null,null,null,null,null,null,null,null,null,null,25]
[47,"МВД по Республике Марий Эл",null,22,20,null,24,27,null,null,null,null,null,null,null,null,null,null,93]
[48,"МВД по Республике Алтай",18,null,null,null,35,44,null,null,null,null,null,null,null,null,null,null,{"$f":"SUM(C85:R85)","v":97}]
[49,"МВД по Республике Тыва",16,null,null,null,null,null,null,null,null,null,null,null,null,null,null,null,16]
[50,"УМВД России по Ненецкому автономному округу",null,null,null,null,19,null,null,null,null,null,null,null,null,null,null,null,19]
[51,"УМВД России по Ямало-Ненецкому автономному округу",35,null,null,null,null,47,null,null,null,null,null,null,null,null,null,null,82]
[52,"УМВД России по Амурской области",null,19,15,null,null,4,null,null,null,null,null,null,null,null,null,null,{"$f":"SUM(C89:R89)","v":38}]
[53,"УМВД России по Курганской области",null,12,16,null,null,16,null,null,null,null,null,null,null,null,null,null,44]
[54,"МВД по Республике Хакасия",null,null,null,null,null,12,null,null,null,null,null,null,null,null,null,null,12]
[55,"Восточно-Сибирское ЛУ МВД России на транспорте",null,null,null,null,null,null,null,null,null,null,null,null,null,null,null,null,0]
[56,"УМВД России по Камчатскому краю",null,null,null,null,null,null,null,null,null,null,null,null,null,null,null,null,0]
[57,"МВД по Республике Бурятия",null,null,null,null,null,null,null,null,null,null,null,null,null,null,null,null,0]
[58,"УТ МВД России по СФО",null,24,30,null,null,36,null,null,null,null,null,null,null,null,null,null,90]
[59,"УМВД России по Забайкальскому краю",null,null,null,null,null,23,null,null,null,null,null,null,null,null,null,null,23]
[60,"УМВД России по Еврейской автономной области",null,null,null,null,null,null,null,null,null,null,null,null,null,null,null,null,0]
[61,"УТ МВД России по ДФО",null,null,null,null,null,null,null,null,null,null,null,null,null,null,null,null,0]
["62-66","УТ МВД России по СКФО",null,null,null,null,null,null,null,null,null,null,null,null,null,null,null,null,0]
["62-66","Забайкальское ЛУ МВД России на транспорте",null,null,null,null,null,null,null,null,null,null,null,null,null,null,null,null,0]
["62-66","УМВД России по Магаданской области",null,null,null,null,null,null,null,null,null,null,null,null,null,null,null,null,0]
["62-66","УМВД России по Чукотскому автономному округу",null,null,null,null,null,null,null,null,null,null,null,null,null,null,null,null,{"$f":"SUM(C102:R102)","v":0}]
["62-66","УТ МВД России по ЮФО",null,null,null,null,null,null,null,null,null,null,null,null,null,null,null,null,{"$f":"SUM(C103:R103)","v":0}]